[Event "Early-Titled-Tuesday-Blitz-November-28-2023"]
[Site "Chess.com"]
[Date "2023.11.28"]
[Round "6"]
[White "Burovic00"]
[Black "Aleksandar-Topalov"]
[Result "1-0"]
[WhiteElo "2573"]
[BlackElo "2382"]
[TimeControl "180+1"]
[EndTime "9:13:55 PST"]
[Termination "Burovic00 won on time"]

1. e4 {[%clk 0:03:00.9]} 1... e6 {[%clk 0:02:57.1]} 2. d3 {[%clk 0:02:59.8]}
2... c5 {[%clk 0:02:54.1]} 3. g3 {[%clk 0:02:59.6]} 3... Nc6 {[%clk 0:02:54.1]}
4. Bg2 {[%clk 0:03:00]} 4... d5 {[%clk 0:02:51.6]} 5. Nd2 {[%clk 0:02:59.7]}
5... Nf6 {[%clk 0:02:51.4]} 6. Nh3 {[%clk 0:02:59.9]} 6... Be7 {[%clk
0:02:45.2]} 7. O-O {[%clk 0:02:59.8]} 7... O-O {[%clk 0:02:45.2]} 8. f4 {[%clk
0:02:59.7]} 8... dxe4 {[%clk 0:02:42.8]} 9. dxe4 {[%clk 0:03:00.6]} 9... e5
{[%clk 0:02:41.7]} 10. f5 {[%clk 0:02:57.8]} 10... b6 {[%clk 0:02:37.5]} 11. c3
{[%clk 0:02:55.7]} 11... Ba6 {[%clk 0:02:35.9]} 12. Re1 {[%clk 0:02:56.1]} 12...
Qc7 {[%clk 0:02:19.3]} 13. g4 {[%clk 0:02:55.6]} 13... h6 {[%clk 0:02:11.4]} 14.
Bf1 {[%clk 0:02:41.8]} 14... Bxf1 {[%clk 0:02:08.6]} 15. Rxf1 {[%clk 0:02:42]}
15... Rad8 {[%clk 0:02:08.1]} 16. Qe2 {[%clk 0:02:42.5]} 16... Qd7 {[%clk
0:02:05]} 17. Nf2 {[%clk 0:02:41.7]} 17... Nh7 {[%clk 0:01:58.8]} 18. Nf3 {[%clk
0:02:36.7]} 18... Bf6 {[%clk 0:01:21.2]} 19. Be3 {[%clk 0:01:44.1]} 19... Qe7
{[%clk 0:01:21.2]} 20. Rad1 {[%clk 0:01:42.7]} 20... Ng5 {[%clk 0:01:19.6]} 21.
Bxg5 {[%clk 0:01:41.7]} 21... Bxg5 {[%clk 0:01:19.5]} 22. Rxd8 {[%clk
0:01:41.4]} 22... Rxd8 {[%clk 0:01:18.6]} 23. Rd1 {[%clk 0:01:42.3]} 23... Bf4
{[%clk 0:01:11.8]} 24. Rxd8+ {[%clk 0:01:39.6]} 24... Qxd8 {[%clk 0:01:11.8]}
25. Qd3 {[%clk 0:01:37]} 25... Qxd3 {[%clk 0:00:59.3]} 26. Nxd3 {[%clk
0:01:37.9]} 26... g5 {[%clk 0:00:56]} 27. b3 {[%clk 0:01:13.3]} 27... Kg7 {[%clk
0:00:46.7]} 28. Kf2 {[%clk 0:01:13.1]} 28... Kf6 {[%clk 0:00:46.6]} 29. Ke2
{[%clk 0:01:12.9]} 29... Ke7 {[%clk 0:00:37.8]} 30. h4 {[%clk 0:01:05.1]} 30...
f6 {[%clk 0:00:36]} 31. h5 {[%clk 0:01:03.7]} 31... Kd6 {[%clk 0:00:35.6]} 32.
Nb2 {[%clk 0:00:59.7]} 32... b5 {[%clk 0:00:34.8]} 33. Kd3 {[%clk 0:01:00]}
33... a6 {[%clk 0:00:34.3]} 34. Ne1 {[%clk 0:00:53.4]} 34... Bc1 {[%clk
0:00:27.9]} 35. Nd1 {[%clk 0:00:52.8]} 35... Na5 {[%clk 0:00:22.3]} 36. Kc2
{[%clk 0:00:42.9]} 36... Bf4 {[%clk 0:00:20.9]} 37. Nd3 {[%clk 0:00:41.6]} 37...
Nc6 {[%clk 0:00:17.2]} 38. N1b2 {[%clk 0:00:39.2]} 38... Be3 {[%clk 0:00:13.9]}
39. Ne1 {[%clk 0:00:32.4]} 39... Bf2 {[%clk 0:00:10]} 40. Nf3 {[%clk 0:00:31.9]}
40... Be3 {[%clk 0:00:08.9]} 41. Nd1 {[%clk 0:00:28.9]} 41... Bf4 {[%clk
0:00:08.8]} 42. Nf2 {[%clk 0:00:29.4]} 42... c4 {[%clk 0:00:07.6]} 43. Nd1
{[%clk 0:00:21.4]} 43... Na5 {[%clk 0:00:06.9]} 44. Nb2 {[%clk 0:00:18.5]} 44...
Kc5 {[%clk 0:00:05.2]} 45. b4+ {[%clk 0:00:15.4]} 45... Kb6 {[%clk 0:00:05.6]}
46. bxa5+ {[%clk 0:00:16.3]} 46... Kxa5 {[%clk 0:00:06]} 47. a4 {[%clk
0:00:12.9]} 47... Kb6 {[%clk 0:00:04.8]} 48. Nd2 {[%clk 0:00:08.4]} 48... Kc5
{[%clk 0:00:03.8]} 49. Nb1 {[%clk 0:00:06.1]} 49... Bg3 {[%clk 0:00:01.7]} 50.
Na3 {[%clk 0:00:05.9]} 1-0

[Event "Early-Titled-Tuesday-Blitz-November-28-2023"]
[Site "Chess.com"]
[Date "2023.11.28"]
[Round "6"]
[White "Matols"]
[Black "chess_blitz00"]
[Result "1-0"]
[WhiteElo "2358"]
[BlackElo "2481"]
[TimeControl "180+1"]
[EndTime "9:13:55 PST"]
[Termination "Matols won on time"]

1. d4 {[%clk 0:03:00.9]} 1... d6 {[%clk 0:03:00.9]} 2. Nf3 {[%clk 0:03:00.4]}
2... Bg4 {[%clk 0:03:01.4]} 3. c4 {[%clk 0:02:59.5]} 3... Bxf3 {[%clk 0:02:58]}
4. exf3 {[%clk 0:03:00.4]} 4... Nf6 {[%clk 0:02:58.2]} 5. Nc3 {[%clk 0:02:56.6]}
5... Nbd7 {[%clk 0:02:45.8]} 6. Be3 {[%clk 0:02:55.2]} 6... e6 {[%clk
0:02:21.8]} 7. Qb3 {[%clk 0:02:52.7]} 7... Nb6 {[%clk 0:02:17.8]} 8. Be2 {[%clk
0:02:42.7]} 8... Be7 {[%clk 0:01:54.6]} 9. a4 {[%clk 0:02:36.3]} 9... a5 {[%clk
0:01:50.8]} 10. O-O {[%clk 0:02:24.3]} 10... O-O {[%clk 0:01:50.5]} 11. Rad1
{[%clk 0:02:21.9]} 11... Qc8 {[%clk 0:01:45.9]} 12. f4 {[%clk 0:02:12.6]} 12...
Nbd7 {[%clk 0:01:39.2]} 13. Bf3 {[%clk 0:02:10.6]} 13... c6 {[%clk 0:01:37.8]}
14. d5 {[%clk 0:01:56.3]} 14... cxd5 {[%clk 0:01:33.7]} 15. cxd5 {[%clk
0:01:55.9]} 15... Nc5 {[%clk 0:01:33.9]} 16. Qc2 {[%clk 0:01:48.8]} 16... Re8
{[%clk 0:00:56.3]} 17. dxe6 {[%clk 0:01:44.5]} 17... Qxe6 {[%clk 0:00:55.2]} 18.
Rfe1 {[%clk 0:01:42.7]} 18... Qc4 {[%clk 0:00:50.6]} 19. Rd4 {[%clk 0:01:22.8]}
19... Qa6 {[%clk 0:00:46.5]} 20. Nb5 {[%clk 0:01:18.8]} 20... Ne6 {[%clk
0:00:35.2]} 21. Rd2 {[%clk 0:01:12.1]} 21... Rac8 {[%clk 0:00:33]} 22. Qd1
{[%clk 0:01:11.9]} 22... d5 {[%clk 0:00:32.3]} 23. Bxd5 {[%clk 0:01:08.4]} 23...
Nxd5 {[%clk 0:00:29]} 24. Rxd5 {[%clk 0:01:09.3]} 24... Bb4 {[%clk 0:00:21.8]}
25. Bd2 {[%clk 0:01:05.6]} 25... Nxf4 {[%clk 0:00:13.3]} 26. Rxe8+ {[%clk
0:01:00.7]} 26... Rxe8 {[%clk 0:00:14]} 27. Bxf4 {[%clk 0:00:57]} 27... Qf6
{[%clk 0:00:06.9]} 28. Be3 {[%clk 0:00:42.1]} 28... Qxb2 {[%clk 0:00:04.1]} 29.
Rd8 {[%clk 0:00:41.1]} 29... Qe5 {[%clk 0:00:03]} 30. Nc7 {[%clk 0:00:32.5]}
30... Rf8 {[%clk 0:00:01.9]} 31. Nb5 {[%clk 0:00:20.8]} 31... h6 {[%clk
0:00:01.6]} 32. g3 {[%clk 0:00:20.1]} 32... Kh7 {[%clk 0:00:01.9]} 33. Rd7
{[%clk 0:00:19]} 33... g6 {[%clk 0:00:01.9]} 34. Rxb7 {[%clk 0:00:17.8]} 34...
Qe6 {[%clk 0:00:02.2]} 35. Rd7 {[%clk 0:00:17.3]} 35... Be7 {[%clk 0:00:01.8]}
36. Qd5 {[%clk 0:00:16.1]} 36... Qxd5 {[%clk 0:00:01.3]} 37. Rxd5 {[%clk
0:00:17]} 37... Rc8 {[%clk 0:00:01.6]} 38. Kg2 {[%clk 0:00:16.7]} 38... Bb4
{[%clk 0:00:02]} 39. Rd7 {[%clk 0:00:16.3]} 39... Kg7 {[%clk 0:00:02.6]} 40.
Bd4+ {[%clk 0:00:15.5]} 40... Kf8 {[%clk 0:00:02.3]} 41. Ra7 {[%clk 0:00:14.8]}
41... Rc4 {[%clk 0:00:02.5]} 42. Be3 {[%clk 0:00:13.7]} 42... g5 {[%clk
0:00:02]} 43. Kf3 {[%clk 0:00:12.9]} 43... Kg7 {[%clk 0:00:02.2]} 44. h3 {[%clk
0:00:13.2]} 44... Kg6 {[%clk 0:00:02.7]} 45. g4 {[%clk 0:00:13.2]} 45... h5
{[%clk 0:00:02.4]} 46. Ra6+ {[%clk 0:00:11.9]} 46... f6 {[%clk 0:00:02.2]} 47.
gxh5+ {[%clk 0:00:11.2]} 47... Kxh5 {[%clk 0:00:03.1]} 48. Rxf6 {[%clk 0:00:11]}
48... Rh4 {[%clk 0:00:02.9]} 49. Kg3 {[%clk 0:00:10.3]} 49... Be1 {[%clk
0:00:01.8]} 50. Rf5 {[%clk 0:00:10]} 1-0

[Event "Early-Titled-Tuesday-Blitz-November-28-2023"]
[Site "Chess.com"]
[Date "2023.11.28"]
[Round "6"]
[White "Ziyamammadov"]
[Black "Chessbard1972"]
[Result "1/2-1/2"]
[WhiteElo "1904"]
[BlackElo "2408"]
[TimeControl "180+1"]
[EndTime "9:13:56 PST"]
[Termination "Game drawn by repetition"]

1. e4 {[%clk 0:02:52.4]} 1... c5 {[%clk 0:02:59.4]} 2. Nf3 {[%clk 0:02:52.9]}
2... a6 {[%clk 0:02:59.2]} 3. d4 {[%clk 0:02:53.3]} 3... cxd4 {[%clk 0:02:59.3]}
4. Nxd4 {[%clk 0:02:53.8]} 4... e6 {[%clk 0:02:59.8]} 5. Nc3 {[%clk 0:02:54]}
5... Nc6 {[%clk 0:02:59]} 6. Be3 {[%clk 0:02:53.2]} 6... Qc7 {[%clk 0:02:58]} 7.
f3 {[%clk 0:02:50.7]} 7... Nf6 {[%clk 0:02:57.2]} 8. Be2 {[%clk 0:02:44.4]} 8...
Bb4 {[%clk 0:02:56.5]} 9. Qd2 {[%clk 0:02:42.6]} 9... d5 {[%clk 0:02:55.6]} 10.
a3 {[%clk 0:02:20.4]} 10... Bxc3 {[%clk 0:02:52.2]} 11. Qxc3 {[%clk 0:02:16.7]}
11... dxe4 {[%clk 0:02:50.2]} 12. fxe4 {[%clk 0:02:05]} 12... Nxe4 {[%clk
0:02:44.4]} 13. Qd3 {[%clk 0:02:05]} 13... Nf6 {[%clk 0:02:39.4]} 14. O-O-O
{[%clk 0:02:02.8]} 14... Bd7 {[%clk 0:02:33]} 15. Bg5 {[%clk 0:01:57.1]} 15...
O-O-O {[%clk 0:02:28.1]} 16. Qc3 {[%clk 0:01:40.7]} 16... Ne5 {[%clk 0:02:09.4]}
17. Qxc7+ {[%clk 0:01:37.9]} 17... Kxc7 {[%clk 0:02:09.2]} 18. Bf4 {[%clk
0:01:38.3]} 18... Kb6 {[%clk 0:01:36.1]} 19. Bxe5 {[%clk 0:01:35.7]} 19... Nd5
{[%clk 0:01:33.8]} 20. Nb3 {[%clk 0:01:27.8]} 20... f6 {[%clk 0:01:31.6]} 21.
Bd4+ {[%clk 0:01:27.4]} 21... Kc7 {[%clk 0:01:32.1]} 22. Bf3 {[%clk 0:01:22.9]}
22... Bc6 {[%clk 0:01:31.9]} 23. Nc5 {[%clk 0:01:14]} 23... Rhe8 {[%clk
0:01:27.7]} 24. Rhe1 {[%clk 0:00:59.7]} 24... e5 {[%clk 0:01:27.4]} 25. Bc3
{[%clk 0:00:51.7]} 25... Nxc3 {[%clk 0:01:21.2]} 26. bxc3 {[%clk 0:00:50.2]}
26... Bxf3 {[%clk 0:01:20.3]} 27. gxf3 {[%clk 0:00:51.1]} 27... Kc6 {[%clk
0:01:20.1]} 28. Rxd8 {[%clk 0:00:44.4]} 28... Rxd8 {[%clk 0:01:19.1]} 29. Ne6
{[%clk 0:00:44.9]} 29... Rd7 {[%clk 0:01:17]} 30. Nf8 {[%clk 0:00:40.7]} 30...
Rd8 {[%clk 0:01:14.8]} 31. Nxh7 {[%clk 0:00:40.2]} 31... Rh8 {[%clk 0:01:14.5]}
32. Ng5 {[%clk 0:00:28.6]} 32... fxg5 {[%clk 0:01:14]} 33. Rxe5 {[%clk
0:00:29.2]} 33... Rxh2 {[%clk 0:01:13.2]} 34. Rxg5 {[%clk 0:00:29.4]} 34... Rf2
{[%clk 0:01:09.9]} 35. Rg6+ {[%clk 0:00:26.5]} 35... Kc5 {[%clk 0:01:03.4]} 36.
Rxg7 {[%clk 0:00:19.4]} 36... Rxf3 {[%clk 0:01:02.4]} 37. Rxb7 {[%clk
0:00:17.5]} 37... Kc6 {[%clk 0:01:00.2]} 38. Rb3 {[%clk 0:00:16.9]} 38... a5
{[%clk 0:00:59.8]} 39. Kd2 {[%clk 0:00:16.8]} 39... Kc5 {[%clk 0:00:57.2]} 40.
Rb8 {[%clk 0:00:16.6]} 40... Rf2+ {[%clk 0:00:56.5]} 41. Ke3 {[%clk 0:00:16.7]}
41... Rxc2 {[%clk 0:00:55.2]} 42. Kd3 {[%clk 0:00:15.7]} 42... Ra2 {[%clk
0:00:54.6]} 43. Rc8+ {[%clk 0:00:14.6]} 43... Kb5 {[%clk 0:00:53.4]} 44. Rb8+
{[%clk 0:00:12.5]} 44... Ka4 {[%clk 0:00:51.4]} 45. Kc4 {[%clk 0:00:09.8]} 45...
Rxa3 {[%clk 0:00:48.4]} 46. Re8 {[%clk 0:00:08.6]} 46... Ra1 {[%clk 0:00:46.4]}
47. Re2 {[%clk 0:00:08.5]} 47... Ka3 {[%clk 0:00:45.5]} 48. Kb5 {[%clk
0:00:07.1]} 48... a4 {[%clk 0:00:45.6]} 49. c4 {[%clk 0:00:07.3]} 49... Rb1+
{[%clk 0:00:45.7]} 50. Ka5 {[%clk 0:00:07.3]} 50... Rb3 {[%clk 0:00:35.5]} 51.
c5 {[%clk 0:00:06.4]} 51... Rc3 {[%clk 0:00:33.8]} 52. Kb5 {[%clk 0:00:06.6]}
52... Kb3 {[%clk 0:00:33.5]} 53. c6 {[%clk 0:00:06.6]} 53... a3 {[%clk
0:00:33.4]} 54. Kb6 {[%clk 0:00:05.6]} 54... a2 {[%clk 0:00:26.9]} 55. Re1
{[%clk 0:00:04.6]} 55... Kb2 {[%clk 0:00:25.3]} 56. Re2+ {[%clk 0:00:05]} 56...
Kb1 {[%clk 0:00:21.7]} 57. Re1+ {[%clk 0:00:03.9]} 57... Kb2 {[%clk 0:00:21.6]}
58. Re2+ {[%clk 0:00:04.2]} 58... Kb3 {[%clk 0:00:21.5]} 59. Re1 {[%clk
0:00:04.5]} 59... Kb2 {[%clk 0:00:21.7]} 1/2-1/2

[Event "Early-Titled-Tuesday-Blitz-November-28-2023"]
[Site "Chess.com"]
[Date "2023.11.28"]
[Round "6"]
[White "RamonManon0g"]
[Black "whitemirrorninja"]
[Result "1/2-1/2"]
[WhiteElo "2342"]
[BlackElo "2508"]
[TimeControl "180+1"]
[EndTime "9:13:59 PST"]
[Termination "Game drawn by repetition"]

1. e4 {[%clk 0:03:00.9]} 1... c5 {[%clk 0:02:58.9]} 2. Nf3 {[%clk 0:03:00.2]}
2... e6 {[%clk 0:02:58.3]} 3. g3 {[%clk 0:02:59.8]} 3... Nc6 {[%clk 0:02:57.8]}
4. Bg2 {[%clk 0:02:59.5]} 4... Nf6 {[%clk 0:02:55.6]} 5. Qe2 {[%clk 0:02:58.9]}
5... Be7 {[%clk 0:02:55]} 6. O-O {[%clk 0:02:58.4]} 6... O-O {[%clk 0:02:55.6]}
7. e5 {[%clk 0:02:52.9]} 7... Nd5 {[%clk 0:02:55.5]} 8. Rd1 {[%clk 0:02:48.1]}
8... d6 {[%clk 0:02:54.2]} 9. c3 {[%clk 0:02:47.4]} 9... dxe5 {[%clk 0:02:53.3]}
10. Nxe5 {[%clk 0:02:48]} 10... Nxe5 {[%clk 0:02:53.6]} 11. Qxe5 {[%clk
0:02:47.4]} 11... Bf6 {[%clk 0:02:53.3]} 12. Qe2 {[%clk 0:02:43.2]} 12... Qc7
{[%clk 0:02:47.7]} 13. Na3 {[%clk 0:02:40.4]} 13... Bd7 {[%clk 0:02:46.2]} 14.
Nc4 {[%clk 0:02:32.6]} 14... Bb5 {[%clk 0:02:35.8]} 15. d3 {[%clk 0:02:31.9]}
15... Rfd8 {[%clk 0:02:29.4]} 16. a4 {[%clk 0:02:28]} 16... Bc6 {[%clk
0:02:29.1]} 17. h4 {[%clk 0:02:22.5]} 17... h6 {[%clk 0:02:27.7]} 18. a5 {[%clk
0:02:15.2]} 18... b5 {[%clk 0:02:20.3]} 19. axb6 {[%clk 0:02:13.9]} 19... axb6
{[%clk 0:02:20.9]} 20. Rxa8 {[%clk 0:02:13.9]} 20... Rxa8 {[%clk 0:02:21.6]} 21.
Ne3 {[%clk 0:02:13.2]} 21... Nxe3 {[%clk 0:02:15.9]} 22. Bxe3 {[%clk 0:02:10.9]}
22... Bxg2 {[%clk 0:02:15.5]} 23. Kxg2 {[%clk 0:02:11.8]} 23... Qc6+ {[%clk
0:02:11.1]} 24. Qf3 {[%clk 0:02:09.3]} 24... Qxf3+ {[%clk 0:02:11.6]} 25. Kxf3
{[%clk 0:02:09.7]} 25... Ra4 {[%clk 0:01:52.7]} 26. d4 {[%clk 0:01:47.3]} 26...
cxd4 {[%clk 0:01:51.6]} 27. Bxd4 {[%clk 0:01:47.6]} 27... Bxd4 {[%clk
0:01:50.2]} 28. Rxd4 {[%clk 0:01:48.5]} 28... Rxd4 {[%clk 0:01:29.4]} 29. cxd4
{[%clk 0:01:49.4]} 29... Kf8 {[%clk 0:01:27.5]} 30. Ke4 {[%clk 0:01:36.2]} 30...
Ke7 {[%clk 0:01:21.8]} 31. d5 {[%clk 0:01:36]} 31... Kd6 {[%clk 0:01:09.6]} 32.
dxe6 {[%clk 0:01:31.8]} 32... Kxe6 {[%clk 0:01:10.5]} 33. Kd4 {[%clk 0:01:29]}
33... g5 {[%clk 0:01:06]} 34. h5 {[%clk 0:01:25.9]} 34... g4 {[%clk 0:00:33.9]}
35. Kc4 {[%clk 0:00:54.7]} 35... f5 {[%clk 0:00:34.2]} 36. Kb5 {[%clk
0:00:50.9]} 36... f4 {[%clk 0:00:34.8]} 37. Kxb6 {[%clk 0:00:49.3]} 37... f3
{[%clk 0:00:18.4]} 38. Kc6 {[%clk 0:00:42.4]} 38... Ke5 {[%clk 0:00:18.3]} 39.
b4 {[%clk 0:00:41.9]} 39... Kd4 {[%clk 0:00:17.9]} 40. b5 {[%clk 0:00:42.2]}
40... Kd3 {[%clk 0:00:18.6]} 41. b6 {[%clk 0:00:42.6]} 41... Ke2 {[%clk
0:00:19.3]} 42. b7 {[%clk 0:00:42.7]} 42... Kxf2 {[%clk 0:00:20.1]} 43. b8=Q
{[%clk 0:00:42.9]} 43... Kg2 {[%clk 0:00:20.7]} 44. Kd5 {[%clk 0:00:31.6]} 44...
f2 {[%clk 0:00:20.8]} 45. Qb2 {[%clk 0:00:27.7]} 45... Kxg3 {[%clk 0:00:12.4]}
46. Qe5+ {[%clk 0:00:25.7]} 46... Kh3 {[%clk 0:00:07.9]} 47. Qf5 {[%clk
0:00:22.2]} 47... Kg3 {[%clk 0:00:02.3]} 48. Ke4 {[%clk 0:00:20.4]} 48... Kg2
{[%clk 0:00:01.2]} 49. Qxg4+ {[%clk 0:00:19.8]} 49... Kh1 {[%clk 0:00:01.9]} 50.
Qf3+ {[%clk 0:00:18.5]} 50... Kg1 {[%clk 0:00:02.2]} 51. Qg3+ {[%clk 0:00:18.7]}
51... Kh1 {[%clk 0:00:02.5]} 52. Qf3+ {[%clk 0:00:15.6]} 52... Kg1 {[%clk
0:00:02.7]} 53. Qe3 {[%clk 0:00:15.3]} 53... Kg2 {[%clk 0:00:01.6]} 54. Qe2
{[%clk 0:00:15.3]} 54... Kg1 {[%clk 0:00:01.7]} 55. Qg4+ {[%clk 0:00:13.8]}
55... Kh1 {[%clk 0:00:01.4]} 56. Qf3+ {[%clk 0:00:10.2]} 1/2-1/2

[Event "Early-Titled-Tuesday-Blitz-November-28-2023"]
[Site "Chess.com"]
[Date "2023.11.28"]
[Round "6"]
[White "rasmussvane"]
[Black "mishanick"]
[Result "1/2-1/2"]
[WhiteElo "3002"]
[BlackElo "3066"]
[TimeControl "180+1"]
[EndTime "9:14:00 PST"]
[Termination "Game drawn by repetition"]

1. Nf3 {[%clk 0:03:00.9]} 1... d5 {[%clk 0:03:00.1]} 2. g3 {[%clk 0:02:59]} 2...
g6 {[%clk 0:02:59.9]} 3. Bg2 {[%clk 0:02:58.5]} 3... Bg7 {[%clk 0:03:00.5]} 4.
d4 {[%clk 0:02:57]} 4... Nf6 {[%clk 0:03:00.3]} 5. O-O {[%clk 0:02:55.7]} 5...
O-O {[%clk 0:03:00.4]} 6. c4 {[%clk 0:02:54.7]} 6... dxc4 {[%clk 0:03:00.3]} 7.
Na3 {[%clk 0:02:54.4]} 7... c5 {[%clk 0:02:51]} 8. dxc5 {[%clk 0:02:49.1]} 8...
c3 {[%clk 0:02:50.4]} 9. Nb5 {[%clk 0:02:44.5]} 9... Na6 {[%clk 0:02:46.9]} 10.
Nxc3 {[%clk 0:02:44.5]} 10... Nxc5 {[%clk 0:02:46.5]} 11. Be3 {[%clk 0:02:42]}
11... Nce4 {[%clk 0:02:43.7]} 12. Nxe4 {[%clk 0:02:40.3]} 12... Nxe4 {[%clk
0:02:44.6]} 13. Bd4 {[%clk 0:02:40.6]} 13... Qa5 {[%clk 0:02:34]} 14. Bxg7
{[%clk 0:02:36.9]} 14... Kxg7 {[%clk 0:02:34.9]} 15. Qd4+ {[%clk 0:02:34]} 15...
Nf6 {[%clk 0:02:35.5]} 16. Qe5 {[%clk 0:02:26.7]} 16... Qxe5 {[%clk 0:02:23.7]}
17. Nxe5 {[%clk 0:02:27.6]} 17... Ng4 {[%clk 0:01:53.2]} 18. Nd3 {[%clk
0:02:07.7]} 18... Rb8 {[%clk 0:01:47.4]} 19. Rfc1 {[%clk 0:01:56.7]} 19... Bf5
{[%clk 0:01:44.1]} 20. Rc7 {[%clk 0:01:54]} 20... Bxd3 {[%clk 0:01:44]} 21. exd3
{[%clk 0:01:54.9]} 21... e6 {[%clk 0:01:32.5]} 22. Bxb7 {[%clk 0:01:45.6]} 22...
Rfd8 {[%clk 0:01:32.9]} 23. Rd1 {[%clk 0:01:38.8]} 23... Nf6 {[%clk 0:01:25.8]}
24. Bf3 {[%clk 0:01:28.7]} 24... Rxb2 {[%clk 0:01:22.9]} 25. Rxa7 {[%clk
0:01:28.7]} 25... g5 {[%clk 0:01:21.9]} 26. h3 {[%clk 0:01:26.4]} 26... h5
{[%clk 0:01:21.6]} 27. Ra5 {[%clk 0:01:21.8]} 27... Kg6 {[%clk 0:01:08.2]} 28.
Kg2 {[%clk 0:01:07.6]} 28... g4 {[%clk 0:01:02.8]} 29. hxg4 {[%clk 0:01:08.5]}
29... hxg4 {[%clk 0:01:03.3]} 30. Bc6 {[%clk 0:01:04]} 30... Rd6 {[%clk
0:01:02.8]} 31. Ba8 {[%clk 0:00:54.6]} 31... Rc2 {[%clk 0:01:02.1]} 32. a4
{[%clk 0:00:51.4]} 32... Rb6 {[%clk 0:00:56]} 33. Be4+ {[%clk 0:00:38.6]} 33...
Nxe4 {[%clk 0:00:42.7]} 34. dxe4 {[%clk 0:00:39.5]} 34... Rbb2 {[%clk
0:00:43.1]} 35. Rf1 {[%clk 0:00:39.8]} 35... Re2 {[%clk 0:00:43.8]} 36. e5
{[%clk 0:00:31.6]} 36... Ra2 {[%clk 0:00:44.4]} 37. Kg1 {[%clk 0:00:32]} 37...
Re4 {[%clk 0:00:41.3]} 38. Ra8 {[%clk 0:00:22.6]} 38... Raxa4 {[%clk 0:00:31]}
39. Rxa4 {[%clk 0:00:19.2]} 39... Rxa4 {[%clk 0:00:30.7]} 40. Rb1 {[%clk
0:00:18.1]} 40... Re4 {[%clk 0:00:30.4]} 41. Rb5 {[%clk 0:00:18]} 41... Rd4
{[%clk 0:00:27.9]} 42. Kg2 {[%clk 0:00:16.5]} 42... Rc4 {[%clk 0:00:25.7]} 43.
Ra5 {[%clk 0:00:16.5]} 43... Rb4 {[%clk 0:00:25.7]} 44. Rc5 {[%clk 0:00:16.8]}
44... Rd4 {[%clk 0:00:26.3]} 45. Rb5 {[%clk 0:00:17.2]} 45... Re4 {[%clk
0:00:18.9]} 46. Rc5 {[%clk 0:00:17.2]} 46... Re1 {[%clk 0:00:15.4]} 47. Rb5
{[%clk 0:00:17.1]} 47... Re2 {[%clk 0:00:14.1]} 48. Rc5 {[%clk 0:00:17.1]} 48...
Re4 {[%clk 0:00:11.2]} 49. Rb5 {[%clk 0:00:17.5]} 49... Kf5 {[%clk 0:00:11.6]}
50. Rb7 {[%clk 0:00:17.6]} 50... Kxe5 {[%clk 0:00:12.1]} 51. Rxf7 {[%clk
0:00:17.6]} 51... Kd4 {[%clk 0:00:12.3]} 52. Rd7+ {[%clk 0:00:16.6]} 52... Kc3
{[%clk 0:00:12.1]} 53. Rd6 {[%clk 0:00:15.7]} 53... e5 {[%clk 0:00:12.3]} 54.
Kf1 {[%clk 0:00:14.6]} 54... Rd4 {[%clk 0:00:07.4]} 55. Re6 {[%clk 0:00:14.5]}
55... Re4 {[%clk 0:00:07.4]} 56. Rd6 {[%clk 0:00:13.8]} 56... Rd4 {[%clk
0:00:07.8]} 57. Re6 {[%clk 0:00:09.2]} 57... Re4 {[%clk 0:00:07.2]} 58. Rd6
{[%clk 0:00:09.3]} 1/2-1/2

[Event "Early-Titled-Tuesday-Blitz-November-28-2023"]
[Site "Chess.com"]
[Date "2023.11.28"]
[Round "6"]
[White "FM-to-GM"]
[Black "GKARU"]
[Result "1-0"]
[WhiteElo "2672"]
[BlackElo "2513"]
[TimeControl "180+1"]
[EndTime "9:14:02 PST"]
[Termination "FM-to-GM won on time"]

1. e4 {[%clk 0:03:00.9]} 1... c5 {[%clk 0:02:28.3]} 2. Nf3 {[%clk 0:03:00.7]}
2... a6 {[%clk 0:02:27.9]} 3. c3 {[%clk 0:02:52.5]} 3... d5 {[%clk 0:02:27]} 4.
d3 {[%clk 0:02:45.7]} 4... Nc6 {[%clk 0:02:25.5]} 5. e5 {[%clk 0:02:40.8]} 5...
d4 {[%clk 0:02:24.5]} 6. c4 {[%clk 0:02:40.7]} 6... e6 {[%clk 0:02:20.7]} 7. g3
{[%clk 0:02:40.4]} 7... Nge7 {[%clk 0:02:21.6]} 8. Bg2 {[%clk 0:02:40.6]} 8...
Ng6 {[%clk 0:02:21.8]} 9. Qe2 {[%clk 0:02:39.7]} 9... Rb8 {[%clk 0:02:19.9]} 10.
O-O {[%clk 0:02:38.2]} 10... b5 {[%clk 0:02:18.9]} 11. b3 {[%clk 0:02:34.5]}
11... Qc7 {[%clk 0:02:17.5]} 12. Re1 {[%clk 0:02:34.2]} 12... Bb7 {[%clk
0:02:17.3]} 13. h4 {[%clk 0:02:32.4]} 13... h6 {[%clk 0:02:17.1]} 14. h5 {[%clk
0:02:32.3]} 14... Nge7 {[%clk 0:02:17.5]} 15. Bf4 {[%clk 0:02:27.7]} 15... Nc8
{[%clk 0:02:16.6]} 16. Nbd2 {[%clk 0:02:27.4]} 16... Nb6 {[%clk 0:02:17.1]} 17.
Ne4 {[%clk 0:02:25.5]} 17... Nc8 {[%clk 0:02:07]} 18. Rac1 {[%clk 0:02:22.6]}
18... b4 {[%clk 0:02:06]} 19. g4 {[%clk 0:02:18.7]} 19... Be7 {[%clk 0:02:06]}
20. Bg3 {[%clk 0:02:13.8]} 20... a5 {[%clk 0:02:06.1]} 21. Nfd2 {[%clk
0:02:06.7]} 21... Ra8 {[%clk 0:01:59.3]} 22. f4 {[%clk 0:02:05.2]} 22... a4
{[%clk 0:01:59.7]} 23. Nf3 {[%clk 0:02:04]} 23... axb3 {[%clk 0:01:52.1]} 24.
axb3 {[%clk 0:02:04.9]} 24... Ra3 {[%clk 0:01:51.9]} 25. Rb1 {[%clk 0:01:44.4]}
25... Na5 {[%clk 0:01:51.4]} 26. Qc2 {[%clk 0:01:37.8]} 26... g6 {[%clk
0:01:05]} 27. hxg6 {[%clk 0:01:29]} 27... fxg6 {[%clk 0:01:05.9]} 28. Bh4 {[%clk
0:01:29.5]} 28... Bxe4 {[%clk 0:01:01.6]} 29. Rxe4 {[%clk 0:01:27.2]} 29... Kf7
{[%clk 0:01:00.7]} 30. Bxe7 {[%clk 0:01:18.9]} 30... Nxe7 {[%clk 0:01:01.6]} 31.
Ree1 {[%clk 0:01:12.8]} 31... Nac6 {[%clk 0:01:00.9]} 32. Nd2 {[%clk 0:01:12]}
32... Qa5 {[%clk 0:01:00.6]} 33. Ne4 {[%clk 0:01:11.9]} 33... Ra2 {[%clk
0:00:56.6]} 34. Rb2 {[%clk 0:01:08.6]} 34... Rxb2 {[%clk 0:00:56.5]} 35. Qxb2
{[%clk 0:01:09.2]} 35... Ra8 {[%clk 0:00:56.4]} 36. Nd6+ {[%clk 0:01:08]} 36...
Kg7 {[%clk 0:00:56]} 37. f5 {[%clk 0:01:01.5]} 37... gxf5 {[%clk 0:00:51.8]} 38.
gxf5 {[%clk 0:01:01.2]} 38... exf5 {[%clk 0:00:52]} 39. Qf2 {[%clk 0:00:55.8]}
39... Qa2 {[%clk 0:00:40.9]} 40. Qg3+ {[%clk 0:00:47.7]} 40... Kh7 {[%clk
0:00:40.4]} 41. Qh3 {[%clk 0:00:19.1]} 41... Rg8 {[%clk 0:00:39]} 42. Kh1 {[%clk
0:00:14]} 42... Rg5 {[%clk 0:00:31.4]} 43. Bxc6 {[%clk 0:00:10.6]} 43... Nxc6
{[%clk 0:00:29.5]} 44. e6 {[%clk 0:00:11.5]} 44... Ne7 {[%clk 0:00:26.6]} 45.
Nf7 {[%clk 0:00:11.6]} 45... Rg6 {[%clk 0:00:25]} 46. Rg1 {[%clk 0:00:08.9]}
46... Rxg1+ {[%clk 0:00:21.4]} 47. Kxg1 {[%clk 0:00:09.8]} 47... Qb1+ {[%clk
0:00:20.7]} 48. Kf2 {[%clk 0:00:09.9]} 48... Qc2+ {[%clk 0:00:18.5]} 49. Kf1
{[%clk 0:00:09.9]} 49... Qd1+ {[%clk 0:00:15.9]} 50. Kg2 {[%clk 0:00:09.5]}
50... Qe2+ {[%clk 0:00:15.2]} 51. Kg1 {[%clk 0:00:09.5]} 51... Qxe6 {[%clk
0:00:15.4]} 52. Ng5+ {[%clk 0:00:09.4]} 1-0